bitfinex-derivatives/quotes_BTCF0:USTF0_20251228
["timestamp","ask_amount","ask_price","bid_price","bid_amount"]
[1766906076373,0.0114029,87768.0,87752.0,0.08801715]
[1766906076875,0.011403,87766.0,87752.0,0.08801715]
[1766906080082,0.011403,87766.0,87753.0,0.03080626]
[1766906082685,0.011403,87766.0,87752.0,0.08801715]
[1766906086386,0.0114027,87769.0,87752.0,0.08801715]
[1766906095689,0.011403,87767.0,87752.0,0.08801715]
[1766906105090,0.011403,87767.0,87752.0,0.05721089]
[1766906107487,0.0114032,87765.0,87752.0,0.05721089]
[1766906110000,0.0114035,87763.0,87752.0,0.05721089]
[1766906111003,0.00227862,87773.0,87752.0,0.05721089]
[1766906111592,0.0114034,87764.0,87752.0,0.05721089]
[1766906111799,0.0114036,87762.0,87752.0,0.05721089]
[1766906112196,0.0114032,87765.0,87752.0,0.05721089]
[1766906116096,0.0114032,87765.0,87752.0,0.08801715]
[1766906117196,0.0114032,87765.0,87752.0,0.05721089]
[1766906127207,0.0114032,87765.0,87752.0,0.08801715]
[1766906128309,0.0114028,87768.0,87752.0,0.08801715]
[1766906135015,0.11442989,87762.0,87752.0,0.08801715]
[1766906135208,0.12583349,87762.0,87753.0,0.15396]
[1766906135406,0.12583349,87762.0,87752.0,0.00017089]
[1766906135407,0.0114038,87760.0,87752.0,0.00017089]
[1766906135608,0.0114047,87753.0,87740.0,0.04106912]
[1766906135802,0.11442989,87750.0,87741.0,0.05704]
[1766906136007,0.11442989,87751.0,87741.0,0.05704]
[1766906147918,0.11442989,87751.0,87742.0,0.05704]
[1766906148328,0.11442989,87752.0,87742.0,0.05704]
[1766906148922,0.00017089,87755.0,87742.0,0.05704]
[1766906149123,0.11442989,87752.0,87742.0,0.05704]
[1766906164241,0.011405,87751.0,87739.0,0.05704]
[1766906164538,0.11442989,87749.0,87739.0,0.05704]
[1766906167546,0.11442989,87750.0,87739.0,0.05704]
[1766906175644,0.011405,87751.0,87739.0,0.05704]
[1766906175847,0.11442989,87750.0,87739.0,0.05704]
[1766906193962,0.011405,87751.0,87739.0,0.05704]
[1766906199669,0.0114046,87754.0,87739.0,0.05704]
[1766906199857,0.02470213,87753.0,87739.0,0.05704]
[1766906200057,0.02470213,87752.0,87739.0,0.05704]
[1766906200257,0.02470213,87751.0,87739.0,0.05704]
[1766906200457,0.0114046,87754.0,87739.0,0.05704]
[1766906200753,0.02470213,87753.0,87739.0,0.05704]
[1766906200958,0.02470213,87752.0,87739.0,0.05704]
[1766906201158,0.02470213,87751.0,87739.0,0.05704]
[1766906201359,0.0114046,87754.0,87739.0,0.05704]
[1766906201559,0.02470213,87753.0,87739.0,0.05704]
[1766906201768,0.02470213,87752.0,87739.0,0.05704]
[1766906201967,0.02470213,87751.0,87739.0,0.05704]
[1766906202168,0.0114046,87754.0,87739.0,0.05704]
[1766906202361,0.02470211,87753.0,87739.0,0.05704]
[1766906202659,0.02470211,87752.0,87739.0,0.05704]
[1766906202862,0.02470211,87751.0,87739.0,0.05704]
[1766906203061,0.0114046,87754.0,87739.0,0.05704]
[1766906203269,0.02470211,87753.0,87739.0,0.05704]
[1766906203469,0.02470211,87752.0,87739.0,0.05704]
[1766906203669,0.02470211,87751.0,87739.0,0.05704]
[1766906203872,0.0114046,87754.0,87739.0,0.05704]
[1766906204072,0.02470211,87753.0,87739.0,0.05704]
[1766906204272,0.03610701,87752.0,87739.0,0.05704]
[1766906204465,0.02470211,87751.0,87739.0,0.05704]
[1766906205774,0.02470211,87751.0,87737.0,0.00017089]
[1766906206073,0.02470211,87751.0,87740.0,0.05704]
[1766906214590,0.0114051,87750.0,87737.0,0.00017089]
[1766906214786,0.0114051,87750.0,87738.0,0.05704]
[1766906216891,0.0114054,87748.0,87738.0,0.05704]
[1766906220592,0.011405,87751.0,87738.0,0.05704]
[1766906220796,0.02470288,87750.0,87738.0,0.05704]
[1766906220990,0.011405,87751.0,87738.0,0.05704]
[1766906221190,0.02470286,87750.0,87738.0,0.05704]
[1766906221390,0.011405,87751.0,87738.0,0.05704]
[1766906221694,0.0114052,87749.0,87738.0,0.05704]
[1766906226995,0.0114047,87753.0,87738.0,0.05704]
[1766906227200,0.011405,87751.0,87738.0,0.05704]
[1766906227399,0.02449915,87750.0,87738.0,0.05704]
[1766906227695,0.011405,87751.0,87738.0,0.05704]
[1766906227897,0.02449914,87750.0,87738.0,0.05704]
[1766906228097,0.011405,87751.0,87738.0,0.05704]
[1766906228295,0.02449913,87750.0,87738.0,0.05704]
[1766906228492,0.011405,87751.0,87738.0,0.05704]
[1766906228694,0.0244991,87750.0,87738.0,0.05704]
[1766906228896,0.011405,87751.0,87738.0,0.05704]
[1766906229192,0.02449906,87750.0,87738.0,0.05704]
[1766906229395,0.011405,87751.0,87738.0,0.05704]
[1766906229586,0.02449903,87750.0,87738.0,0.05704]
[1766906229784,0.011405,87751.0,87738.0,0.05704]
[1766906229997,0.02449903,87750.0,87738.0,0.05704]
[1766906230193,0.011405,87751.0,87738.0,0.05704]
[1766906230394,0.024499,87750.0,87738.0,0.05704]
[1766906230595,0.011405,87751.0,87738.0,0.05704]
[1766906230892,0.024499,87750.0,87738.0,0.05704]
[1766906231094,0.011405,87751.0,87738.0,0.05704]
[1766906231298,0.02449901,87750.0,87738.0,0.05704]
[1766906231501,0.011405,87751.0,87738.0,0.05704]
[1766906231797,0.024499,87750.0,87738.0,0.05704]
[1766906231999,0.0114052,87749.0,87738.0,0.05704]
[1766906240807,0.0114052,87749.0,87737.0,0.00017089]
[1766906241008,0.0114052,87749.0,87739.0,0.05704]
[1766906242401,0.00017089,87755.0,87739.0,0.05704]
[1766906242607,0.02449848,87754.0,87739.0,0.05704]
[1766906242808,0.02449848,87753.0,87739.0,0.05704]
[1766906243102,0.02449848,87752.0,87737.0,0.00017089]
[1766906243306,0.00017089,87755.0,87737.0,0.00017089]
[1766906243307,0.0114058,87745.0,87738.0,0.05704]
[1766906243510,0.0114054,87748.0,87738.0,0.05704]
[1766906248204,0.0114046,87754.0,87738.0,0.05704]
[1766906248405,0.02449486,87753.0,87738.0,0.05704]
[1766906248604,0.02449486,87752.0,87738.0,0.05704]
[1766906248800,0.00949486,87751.0,87738.0,0.05704]
[1766906249003,0.00017089,87755.0,87738.0,0.05704]
[1766906249207,0.01157539,87755.0,87738.0,0.05704]
[1766906252112,0.01157539,87755.0,87738.0,0.0684465]
[1766906252312,0.00017089,87755.0,87738.0,0.0684465]
[1766906253013,0.04713089,87757.0,87738.0,0.0684465]
[1766906254304,0.0114043,87756.0,87738.0,0.0684465]
[1766906255714,0.0114046,87754.0,87738.0,0.0684465]
[1766906255913,0.11446991,87750.0,87738.0,0.0684465]
[1766906263917,0.11446991,87750.0,87723.0,0.08212]
[1766906263918,0.0114058,87745.0,87724.0,0.06159]
[1766906264122,0.11446991,87740.0,87732.0,0.01310946]
[1766906264321,0.11446991,87742.0,87733.0,0.05704]
[1766906267826,0.11446991,87743.0,87732.0,0.05704]
[1766906268022,0.11446991,87742.0,87732.0,0.05704]
[1766906275125,0.11446991,87742.0,87733.0,0.05704]
[1766906279936,0.11446991,87742.0,87729.0,0.00017089]
[1766906280139,0.11446991,87742.0,87730.0,0.07014946]
[1766906280321,0.11446991,87742.0,87730.0,0.01310946]
[1766906280631,0.11446991,87742.0,87731.0,0.05704]
[1766906281025,0.11446991,87741.0,87731.0,0.05704]
[1766906281423,0.11446991,87741.0,87732.0,0.01310946]
[1766906281628,0.01157649,87746.0,87732.0,0.01310946]
[1766906281825,0.11446991,87742.0,87731.0,0.05704]
[1766906282131,0.11446991,87742.0,87732.0,0.01310946]
[1766906284036,0.01157649,87746.0,87732.0,0.01310946]
[1766906284237,0.11446991,87742.0,87731.0,0.05704]
[1766906284635,0.11446991,87742.0,87732.0,0.01310946]
[1766906286939,0.11446991,87742.0,87733.0,0.05704]
[1766906288538,0.01157649,87746.0,87733.0,0.05704]
[1766906288841,0.11446991,87743.0,87733.0,0.05704]
[1766906297445,0.02448497,87742.0,87733.0,0.05704]
[1766906297646,0.11446991,87743.0,87733.0,0.05704]
[1766906297846,0.02448681,87742.0,87733.0,0.05704]
[1766906298058,0.11446991,87743.0,87733.0,0.05704]
[1766906298257,0.02448675,87742.0,87733.0,0.05704]
[1766906298459,0.11446991,87743.0,87733.0,0.05704]
[1766906298656,0.02448693,87742.0,87733.0,0.05704]
[1766906298858,0.11446991,87743.0,87733.0,0.05704]
[1766906299049,0.02448693,87742.0,87733.0,0.05704]
[1766906299247,0.11446991,87743.0,87733.0,0.05704]
[1766906299451,0.02448702,87742.0,87733.0,0.05704]
[1766906299652,0.11446991,87743.0,87733.0,0.05704]
[1766906299862,0.02448702,87742.0,87733.0,0.05704]
[1766906300062,0.11446991,87743.0,87733.0,0.05704]
[1766906300263,0.02448702,87742.0,87733.0,0.05704]
[1766906300454,0.11446991,87743.0,87733.0,0.05704]
[1766906300654,0.02448707,87742.0,87733.0,0.05704]
[1766906300854,0.11446991,87743.0,87733.0,0.05704]
[1766906301054,0.02448706,87742.0,87733.0,0.05704]
[1766906301252,0.11446991,87743.0,87733.0,0.05704]
[1766906301456,0.02448718,87742.0,87733.0,0.05704]
[1766906301658,0.11446991,87743.0,87733.0,0.05704]
[1766906301864,0.02448644,87742.0,87733.0,0.05704]
[1766906302163,0.11446991,87743.0,87733.0,0.05704]
[1766906302463,0.02448646,87742.0,87733.0,0.05704]
[1766906302661,0.11446991,87743.0,87733.0,0.05704]
[1766906302860,0.0244865,87742.0,87733.0,0.05704]
[1766906303159,0.11446991,87743.0,87733.0,0.05704]
[1766906303360,0.02448671,87742.0,87733.0,0.05704]
[1766906303560,0.11446991,87743.0,87733.0,0.05704]
[1766906303862,0.02448675,87742.0,87733.0,0.05704]
[1766906304057,0.11446991,87743.0,87733.0,0.05704]
[1766906304258,0.0244868,87742.0,87733.0,0.05704]
[1766906304458,0.11446991,87743.0,87733.0,0.05704]
[1766906304658,0.0244871,87742.0,87733.0,0.05704]
[1766906304863,0.11446991,87743.0,87733.0,0.05704]
[1766906305063,0.0244871,87742.0,87733.0,0.05704]
[1766906305271,0.11446991,87743.0,87733.0,0.05704]
[1766906305466,0.02448737,87742.0,87733.0,0.05704]
[1766906305661,0.11446991,87743.0,87733.0,0.05704]
[1766906305868,0.02448731,87742.0,87733.0,0.05704]
[1766906306067,0.11446991,87743.0,87733.0,0.05704]
[1766906306366,0.02448731,87742.0,87733.0,0.05704]
[1766906306566,0.11446991,87743.0,87733.0,0.05704]
[1766906306766,0.02448764,87742.0,87733.0,0.05704]
[1766906306967,0.11446991,87743.0,87733.0,0.05704]
[1766906307167,0.02448764,87742.0,87733.0,0.05704]
[1766906307462,0.11446991,87743.0,87733.0,0.05704]
[1766906312166,0.00017089,87746.0,87734.0,0.0114071]
[1766906312464,0.00017089,87746.0,87736.0,0.0114068]
[1766906316969,0.00017089,87746.0,87733.0,0.05704]
[1766906317872,0.011406,87743.0,87733.0,0.05704]
[1766906318072,0.011406,87743.0,87729.0,0.09713089]
[1766906318073,0.011406,87743.0,87729.0,0.00017089]
[1766906318271,0.011406,87743.0,87730.0,0.16710946]
[1766906319276,0.011406,87743.0,87730.0,0.154]
[1766906319479,0.0114063,87741.0,87730.0,0.154]
[1766906319876,0.0114063,87741.0,87731.0,0.01310946]
[1766906320379,0.0114063,87741.0,87730.0,0.154]
[1766906320578,0.0114063,87741.0,87731.0,0.01310946]
[1766906320974,0.0114063,87741.0,87730.0,0.154]
[1766906321175,0.0114063,87741.0,87731.0,0.01310946]
[1766906321775,0.0114063,87741.0,87730.0,0.154]
[1766906323779,0.0114059,87745.0,87730.0,0.154]
[1766906324079,0.02437325,87744.0,87731.0,0.01310946]
[1766906324279,0.02437325,87743.0,87731.0,0.01310946]
[1766906324480,0.0114059,87745.0,87730.0,0.154]
[1766906324680,0.0243732,87744.0,87730.0,0.154]
[1766906324982,0.0114059,87745.0,87730.0,0.154]
[1766906325181,0.0243732,87744.0,87730.0,0.154]
[1766906325479,0.0114059,87745.0,87730.0,0.154]
[1766906325680,0.02437316,87744.0,87730.0,0.154]
[1766906325880,0.0114059,87745.0,87730.0,0.154]
[1766906326082,0.02437318,87744.0,87730.0,0.154]
[1766906326281,0.0114059,87745.0,87730.0,0.154]
[1766906333383,0.00017089,87746.0,87730.0,0.154]
[1766906333591,0.011406,87743.0,87731.0,0.01310946]
[1766906334088,0.00017089,87746.0,87732.0,0.05704]
[1766906334288,0.0243727,87745.0,87732.0,0.05704]
[1766906334477,0.0243727,87744.0,87732.0,0.05704]
[1766906334679,0.00017089,87746.0,87732.0,0.05704]
[1766906334886,0.02437247,87745.0,87732.0,0.05704]
[1766906335082,0.02437247,87744.0,87732.0,0.05704]
[1766906335290,0.00017089,87746.0,87732.0,0.05704]
[1766906335489,0.02437235,87745.0,87732.0,0.05704]
[1766906335793,0.02437235,87744.0,87732.0,0.05704]
[1766906335984,0.0114064,87740.0,87733.0,0.01310946]
[1766906336297,0.00017089,87746.0,87732.0,0.05704]
[1766906336592,0.0114081,87727.0,87717.0,0.06159]
[1766906336792,0.0114081,87727.0,87712.0,0.10189868]
[1766906336992,0.0114081,87727.0,87714.0,0.05704]
[1766906338491,0.0114077,87730.0,87714.0,0.05704]
[1766906339483,0.0114073,87733.0,87714.0,0.05704]
[1766906339683,0.02459839,87732.0,87714.0,0.05704]
[1766906339991,0.0114073,87733.0,87714.0,0.05704]
[1766906340190,0.02459839,87732.0,87714.0,0.05704]
[1766906340490,0.0114073,87733.0,87714.0,0.05704]
[1766906340687,0.0114076,87731.0,87714.0,0.05704]
[1766906342688,0.0114072,87734.0,87715.0,0.0114096]
[1766906342886,0.02458792,87733.0,87715.0,0.0114096]
[1766906343094,0.0114075,87732.0,87715.0,0.0114096]
[1766906343479,0.0114075,87732.0,87714.0,0.05704]
[1766906343994,0.0114075,87732.0,87713.0,0.00228018]
[1766906344189,0.0114075,87732.0,87714.0,0.05704]
[1766906344592,0.0114075,87732.0,87714.0,0.0684497]
[1766906344889,0.0114071,87735.0,87714.0,0.0684497]
[1766906345089,0.02458261,87734.0,87714.0,0.0684497]
[1766906345391,0.0114071,87735.0,87716.0,0.0114094]
[1766906345687,0.02458042,87734.0,87716.0,0.0114094]
[1766906345880,0.0114071,87735.0,87716.0,0.0114094]
[1766906346083,0.02458044,87734.0,87716.0,0.0114094]
[1766906346285,0.0114071,87735.0,87716.0,0.0114094]
[1766906346497,0.02505756,87734.0,87716.0,0.0114094]
[1766906346698,0.0114071,87735.0,87718.0,0.0114092]
[1766906346893,0.154,87737.0,87718.0,0.0114092]
[1766906347096,0.0114069,87736.0,87718.0,0.0114092]
[1766906347892,0.0114072,87734.0,87718.0,0.0114092]
[1766906348095,0.0114072,87734.0,87714.0,0.05704]
[1766906348096,0.0114072,87734.0,87715.0,0.0114096]
[1766906348694,0.0114072,87734.0,87717.0,0.0114093]
[1766906350596,0.0114072,87734.0,87719.0,0.011409]
[1766906350892,0.1654068,87737.0,87719.0,0.011409]
[1766906351084,0.0114071,87735.0,87719.0,0.011409]
[1766906354692,0.154,87737.0,87721.0,0.0114088]
[1766906354896,0.154,87737.0,87723.0,0.0114085]
[1766906355704,0.0114063,87741.0,87725.0,0.0114083]
[1766906355901,0.05708,87741.0,87727.0,0.011408]
[1766906356200,0.05708,87741.0,87724.0,0.0114084]
[1766906358798,0.02495536,87740.0,87724.0,0.0114084]
[1766906358998,0.02495536,87739.0,87724.0,0.0114084]
[1766906359199,0.02495536,87738.0,87724.0,0.0114084]
[1766906359397,0.02495536,87737.0,87724.0,0.0114084]
[1766906359698,0.02495536,87736.0,87724.0,0.0114084]
[1766906359897,0.02495536,87735.0,87724.0,0.0114084]
[1766906360198,0.05708,87741.0,87724.0,0.0114084]
[1766906360397,0.02495926,87740.0,87724.0,0.0114084]
[1766906360599,0.02495926,87739.0,87724.0,0.0114084]
[1766906360902,0.02495926,87738.0,87724.0,0.0114084]
[1766906361091,0.02495926,87737.0,87724.0,0.0114084]
[1766906361291,0.02495926,87736.0,87724.0,0.0114084]
[1766906361496,0.02495926,87735.0,87724.0,0.0114084]
[1766906361802,0.02495926,87734.0,87724.0,0.0114084]
[1766906362096,0.0114064,87740.0,87724.0,0.0114084]
[1766906362297,0.02496571,87739.0,87724.0,0.0114084]
[1766906362498,0.02496571,87738.0,87724.0,0.0114084]
[1766906362691,0.02496571,87737.0,87724.0,0.0114084]
[1766906362892,0.02496571,87736.0,87724.0,0.0114084]
[1766906363091,0.02496571,87735.0,87724.0,0.0114084]
[1766906363293,0.0114064,87740.0,87724.0,0.0114084]
[1766906363294,0.02496571,87734.0,87724.0,0.0114084]
[1766906363492,0.02496571,87733.0,87724.0,0.0114084]
[1766906363701,0.0114064,87740.0,87724.0,0.0114084]
[1766906363902,0.02497608,87739.0,87724.0,0.0114084]
[1766906364098,0.02497608,87738.0,87724.0,0.0114084]
[1766906364299,0.02497608,87737.0,87724.0,0.0114084]
[1766906364500,0.02497608,87736.0,87724.0,0.0114084]
[1766906364800,0.02497608,87735.0,87724.0,0.0114084]
[1766906365100,0.02497608,87734.0,87724.0,0.0114084]
[1766906365296,0.02497608,87733.0,87724.0,0.0114084]
[1766906365494,0.02497608,87732.0,87724.0,0.0114084]
[1766906365696,0.02499058,87731.0,87724.0,0.0114084]
[1766906365900,0.0114064,87740.0,87724.0,0.0114084]
[1766906366101,0.02499058,87739.0,87724.0,0.0114084]
[1766906366402,0.02499058,87738.0,87724.0,0.0114084]
[1766906366603,0.02499058,87737.0,87724.0,0.0114084]
[1766906366904,0.02499058,87736.0,87724.0,0.0114084]
[1766906367107,0.02499058,87735.0,87724.0,0.0114084]
[1766906367293,0.02499058,87734.0,87724.0,0.0114084]
[1766906367494,0.02499058,87733.0,87724.0,0.0114084]
[1766906367794,0.02499058,87732.0,87724.0,0.0114084]
[1766906368103,0.02499058,87731.0,87724.0,0.0114084]
[1766906368303,0.02499058,87730.0,87724.0,0.0114084]
[1766906368499,0.0114064,87740.0,87724.0,0.0114084]
[1766906368699,0.02500253,87739.0,87724.0,0.0114084]
[1766906368999,0.02500253,87738.0,87724.0,0.0114084]
[1766906369206,0.02500253,87737.0,87724.0,0.0114084]
[1766906369398,0.02500253,87736.0,87724.0,0.0114084]
[1766906369597,0.02500253,87735.0,87724.0,0.0114084]
[1766906369797,0.02500253,87734.0,87724.0,0.0114084]
[1766906369998,0.02500253,87733.0,87724.0,0.0114084]
[1766906370300,0.02500253,87732.0,87724.0,0.0114084]
[1766906370502,0.02500253,87731.0,87724.0,0.0114084]
[1766906370703,0.0114064,87740.0,87724.0,0.0114084]
[1766906370704,0.02500253,87730.0,87724.0,0.0114084]
[1766906370905,0.0114064,87740.0,87724.0,0.0114084]
[1766906371104,0.02500276,87739.0,87724.0,0.0114084]
[1766906371403,0.02500276,87738.0,87724.0,0.0114084]
[1766906371605,0.02500276,87737.0,87724.0,0.0114084]
[1766906371903,0.02500276,87736.0,87724.0,0.0114084]
[1766906372105,0.02500276,87735.0,87724.0,0.0114084]
[1766906372405,0.02500276,87734.0,87724.0,0.0114084]
[1766906372605,0.02500276,87733.0,87724.0,0.0114084]
[1766906372803,0.02500276,87732.0,87724.0,0.0114084]
[1766906373005,0.0114064,87740.0,87724.0,0.0114084]
[1766906373203,0.02500246,87739.0,87724.0,0.0114084]
[1766906373405,0.02500246,87738.0,87724.0,0.0114084]
[1766906373706,0.02500246,87737.0,87724.0,0.0114084]
[1766906374004,0.02500246,87736.0,87724.0,0.0114084]
[1766906374198,0.02500246,87735.0,87724.0,0.0114084]
[1766906374398,0.02500246,87734.0,87724.0,0.0114084]
[1766906374604,0.02500246,87733.0,87724.0,0.0114084]
[1766906374803,0.02500246,87732.0,87724.0,0.0114084]
[1766906375005,0.0114064,87740.0,87724.0,0.0114084]
[1766906375205,0.02500231,87739.0,87724.0,0.0114084]
[1766906375405,0.02500231,87738.0,87724.0,0.0114084]
[1766906375606,0.02500231,87737.0,87724.0,0.0114084]
[1766906375796,0.02500231,87736.0,87724.0,0.0114084]
[1766906375998,0.02500231,87735.0,87724.0,0.0114084]
[1766906376200,0.02500231,87734.0,87724.0,0.0114084]
[1766906376401,0.02500231,87733.0,87724.0,0.0114084]
[1766906376596,0.02500231,87732.0,87724.0,0.0114084]
[1766906376809,0.0114064,87740.0,87724.0,0.0114084]
[1766906377010,0.02495559,87739.0,87724.0,0.0114084]
[1766906377217,0.02495559,87738.0,87724.0,0.0114084]
[1766906377417,0.02495559,87737.0,87724.0,0.0114084]
[1766906377622,0.02495559,87736.0,87724.0,0.0114084]
[1766906377811,0.02495559,87735.0,87724.0,0.0114084]
[1766906378012,0.02495559,87734.0,87724.0,0.0114084]
[1766906378213,0.02495559,87733.0,87724.0,0.0114084]
[1766906378414,0.02495559,87732.0,87724.0,0.0114084]
[1766906378711,0.12591217,87740.0,87724.0,0.0114084]
[1766906378914,0.02495549,87739.0,87724.0,0.0114084]
[1766906379217,0.02495549,87738.0,87724.0,0.0114084]
[1766906379418,0.02495549,87737.0,87724.0,0.0114084]
[1766906379725,0.02495549,87736.0,87724.0,0.0114084]
[1766906379918,0.02495549,87735.0,87724.0,0.0114084]
[1766906380115,0.02495549,87734.0,87724.0,0.0114084]
[1766906380324,0.02495549,87733.0,87724.0,0.0114084]
[1766906380523,0.02495549,87732.0,87724.0,0.0114084]
[1766906380823,0.12591217,87740.0,87724.0,0.0114084]
[1766906381025,0.02495581,87739.0,87724.0,0.0114084]
[1766906381325,0.02495581,87738.0,87724.0,0.0114084]
[1766906381524,0.02495581,87737.0,87724.0,0.0114084]
[1766906381720,0.02495581,87736.0,87724.0,0.0114084]
[1766906381921,0.02495581,87735.0,87724.0,0.0114084]
[1766906382224,0.02495581,87734.0,87724.0,0.0114084]
[1766906382425,0.02495581,87733.0,87724.0,0.0114084]
[1766906382625,0.02495581,87732.0,87724.0,0.0114084]
[1766906382824,0.12591217,87740.0,87724.0,0.0114084]
[1766906383024,0.02495659,87739.0,87724.0,0.0114084]
[1766906383225,0.02495659,87738.0,87724.0,0.0114084]
[1766906383425,0.02495659,87737.0,87724.0,0.0114084]
[1766906383628,0.02495659,87736.0,87724.0,0.0114084]
[1766906383926,0.02495659,87735.0,87724.0,0.0114084]
[1766906384126,0.02495659,87734.0,87724.0,0.0114084]
[1766906384326,0.12591217,87740.0,87724.0,0.0114084]
[1766906384327,0.02495659,87733.0,87724.0,0.0114084]
[1766906384527,0.02495659,87732.0,87724.0,0.0114084]
[1766906384732,0.12591217,87740.0,87724.0,0.0114084]
[1766906384936,0.02495792,87739.0,87724.0,0.0114084]
[1766906385123,0.02495792,87738.0,87724.0,0.0114084]
[1766906385432,0.02495792,87737.0,87724.0,0.0114084]
[1766906385633,0.02495792,87736.0,87724.0,0.0114084]
[1766906385834,0.02495792,87735.0,87724.0,0.0114084]
[1766906386032,0.02495792,87734.0,87724.0,0.0114084]
[1766906386331,0.02495792,87733.0,87724.0,0.0114084]
[1766906386533,0.02495792,87732.0,87724.0,0.0114084]
[1766906386733,0.12591217,87740.0,87724.0,0.0114084]
[1766906386923,0.02495882,87739.0,87724.0,0.0114084]
[1766906387124,0.02495882,87738.0,87724.0,0.0114084]
[1766906387326,0.02495882,87737.0,87724.0,0.0114084]
[1766906387625,0.02495882,87736.0,87724.0,0.0114084]
[1766906387823,0.02495882,87735.0,87724.0,0.0114084]
[1766906388028,0.02495882,87734.0,87724.0,0.0114084]
[1766906388336,0.02495882,87733.0,87724.0,0.0114084]
[1766906388532,0.02495882,87732.0,87724.0,0.0114084]
[1766906388732,0.12591217,87740.0,87724.0,0.0114084]
[1766906389032,0.02495886,87739.0,87724.0,0.0114084]
[1766906389223,0.02495886,87738.0,87724.0,0.0114084]
[1766906389423,0.02495886,87737.0,87724.0,0.0114084]
[1766906389618,0.02495886,87736.0,87724.0,0.0114084]
[1766906389823,0.02495886,87735.0,87724.0,0.0114084]
[1766906390024,0.02495886,87734.0,87724.0,0.0114084]
[1766906390226,0.02495886,87733.0,87724.0,0.0114084]
[1766906390424,0.02495886,87732.0,87724.0,0.0114084]
[1766906390624,0.12591217,87740.0,87724.0,0.0114084]
[1766906390828,0.02495914,87739.0,87724.0,0.0114084]
[1766906391030,0.02495914,87738.0,87724.0,0.0114084]
[1766906391230,0.02495914,87737.0,87724.0,0.0114084]
[1766906391430,0.02495914,87736.0,87724.0,0.0114084]
[1766906391631,0.02495914,87735.0,87724.0,0.0114084]
[1766906391831,0.02495914,87734.0,87724.0,0.0114084]
[1766906392033,0.02495914,87733.0,87724.0,0.0114084]
[1766906392226,0.02495914,87732.0,87724.0,0.0114084]
[1766906392427,0.12591217,87740.0,87724.0,0.0114084]
[1766906392628,0.02495971,87739.0,87724.0,0.0114084]
[1766906392836,0.02495971,87738.0,87724.0,0.0114084]
[1766906393028,0.02495971,87737.0,87724.0,0.0114084]
[1766906393228,0.02495971,87736.0,87724.0,0.0114084]
[1766906393528,0.02495971,87735.0,87724.0,0.0114084]
[1766906393728,0.02495971,87734.0,87724.0,0.0114084]
[1766906393929,0.02495971,87733.0,87721.0,0.0114088]
[1766906394228,0.02495971,87732.0,87721.0,0.0114088]
[1766906394536,0.0114067,87738.0,87721.0,0.0114088]
[1766906396836,0.0114067,87738.0,87723.0,0.0114085]
[1766906397538,0.11450577,87740.0,87723.0,0.0114085]
[1766906400740,0.11450577,87740.0,87725.0,0.0114082]
[1766906406342,0.02465215,87739.0,87725.0,0.0114082]
[1766906406644,0.02465215,87738.0,87725.0,0.0114082]
[1766906406846,0.02465215,87737.0,87725.0,0.0114082]
[1766906407048,0.02465215,87736.0,87725.0,0.0114082]
[1766906407251,0.02465215,87735.0,87725.0,0.0114082]
[1766906407444,0.02465215,87734.0,87725.0,0.0114082]
[1766906407643,0.02465215,87733.0,87725.0,0.0114082]
[1766906407844,0.02465215,87732.0,87725.0,0.0114082]
[1766906408043,0.11450577,87740.0,87725.0,0.0114082]
[1766906408244,0.02465205,87739.0,87727.0,0.011408]
[1766906408543,0.02465205,87738.0,87727.0,0.011408]
[1766906408737,0.02465205,87737.0,87727.0,0.011408]
[1766906408935,0.02465205,87736.0,87727.0,0.011408]
[1766906409147,0.02465205,87735.0,87727.0,0.011408]
[1766906409332,0.02465205,87734.0,87727.0,0.011408]
[1766906409537,0.02465205,87733.0,87727.0,0.011408]
[1766906409733,0.02465205,87732.0,87727.0,0.011408]
[1766906409934,0.11450577,87740.0,87727.0,0.011408]
[1766906410146,0.02465197,87739.0,87727.0,0.011408]
[1766906410346,0.02465197,87738.0,87727.0,0.011408]
[1766906410547,0.02465197,87737.0,87727.0,0.011408]
[1766906410744,0.02465197,87736.0,87727.0,0.011408]
[1766906411043,0.02465197,87735.0,87727.0,0.011408]
[1766906411242,0.02465197,87734.0,87727.0,0.011408]
[1766906411440,0.02465197,87733.0,87727.0,0.011408]
[1766906411639,0.02465197,87732.0,87724.0,0.0114084]
[1766906411837,0.11450577,87740.0,87724.0,0.0114084]
[1766906412033,0.02465194,87739.0,87724.0,0.0114084]
[1766906412246,0.02465194,87738.0,87724.0,0.0114084]
[1766906412435,0.02465194,87737.0,87724.0,0.0114084]
[1766906412640,0.02465194,87736.0,87724.0,0.0114084]
[1766906412839,0.02465194,87735.0,87724.0,0.0114084]
[1766906413139,0.02465194,87734.0,87724.0,0.0114084]
[1766906413341,0.02465194,87733.0,87724.0,0.0114084]
[1766906413543,0.02465194,87732.0,87724.0,0.0114084]
[1766906413748,0.11450577,87740.0,87724.0,0.0114084]
[1766906413949,0.02465189,87739.0,87724.0,0.0114084]
[1766906414247,0.02465189,87738.0,87724.0,0.0114084]
[1766906414450,0.02465189,87737.0,87724.0,0.0114084]
[1766906414649,0.02465189,87736.0,87724.0,0.0114084]
[1766906414850,0.02465189,87735.0,87724.0,0.0114084]
[1766906415049,0.02465189,87734.0,87724.0,0.0114084]
[1766906415345,0.02465189,87733.0,87724.0,0.0114084]
[1766906415542,0.11450577,87740.0,87723.0,0.05704]
[1766906416150,0.05708,87741.0,87723.0,0.05704]
[1766906416354,0.11450577,87740.0,87723.0,0.05704]
[1766906417344,0.11450577,87740.0,87727.0,0.011408]
[1766906417851,0.05708,87741.0,87727.0,0.011408]
[1766906418657,0.05704,87745.0,87727.0,0.011408]
[1766906419156,0.0114059,87744.0,87727.0,0.011408]
[1766906423655,0.0114059,87744.0,87729.0,0.0114077]
[1766906428050,0.05704,87745.0,87723.0,0.05704]
[1766906428355,0.05704,87745.0,87733.0,0.0114072]
[1766906441064,0.00017089,87746.0,87733.0,0.0114072]
[1766906448167,0.00017089,87746.0,87735.0,0.011407]
[1766906456174,0.00017089,87746.0,87730.0,0.09713099]
[1766906457273,0.00017089,87746.0,87734.0,0.0114071]
[1766906462182,0.00017089,87746.0,87731.0,0.0114075]
[1766906463090,0.00017089,87746.0,87732.0,0.05704]
[1766906470794,0.00017089,87746.0,87733.0,0.0114073]
[1766906478399,0.03996,87749.0,87735.0,0.011407]
[1766906478595,0.0684446,87754.0,87737.0,0.0114067]
[1766906478796,0.0114049,87752.0,87738.0,0.05704]
[1766906485607,0.0114051,87750.0,87738.0,0.05704]
[1766906486304,0.0114054,87748.0,87738.0,0.05704]
[1766906493312,0.011405,87751.0,87738.0,0.05704]
[1766906499915,0.11446211,87750.0,87738.0,0.05704]